bitfinex-derivatives/quotes_ETHF0:USTF0_20250709
["timestamp","ask_amount","ask_price","bid_price","bid_amount"]
[1752070907130,4.8169,2664.0,2663.9,2.11717]
[1752070908321,4.8169,2664.0,2663.9,0.75067]
[1752070912034,6.26215385,2664.0,2663.9,0.75067]
[1752070912234,7.01279385,2664.0,2663.9,0.75067]
[1752070912630,6.26215385,2664.0,2663.9,0.75067]
[1752070913029,3.8374,2664.0,2663.9,0.75067]
[1752070913832,3.8374,2664.0,2663.9,0.75227]
[1752070915834,3.8374,2664.0,2663.9,4.03682464]
[1752070916029,3.2078,2664.0,2663.9,4.03682464]
[1752070916832,4.65363478,2664.0,2663.9,4.03682464]
[1752070918230,5.30853478,2664.0,2663.9,4.03682464]
[1752070918631,4.8822,2664.0,2663.9,0.75067]
[1752070919037,3.2078,2664.0,2663.9,0.75227]
[1752070919236,3.2078,2664.0,2663.9,0.75067]
[1752070919632,3.8627,2664.0,2663.9,0.75227]
[1752070919835,4.8822,2664.0,2663.9,0.75227]
[1752070922337,6.32855335,2664.0,2663.9,0.75227]
[1752070923140,6.32855335,2664.0,2663.9,0.75067]
[1752070925545,7.07919335,2664.0,2663.9,0.75067]
[1752070926135,6.32855335,2664.0,2663.9,0.75067]
[1752070926448,4.47943335,2664.0,2663.9,0.75067]
[1752070926745,5.49893335,2664.0,2663.9,0.75067]
[1752070927147,5.49893335,2664.0,2663.9,0.75227]
[1752070930646,5.49893335,2664.0,2663.9,0.75067]
[1752070932049,5.49893335,2664.0,2663.9,2.48730823]
[1752070932354,4.47943335,2664.0,2663.9,2.48730823]
[1752070932753,2.37818,2664.0,2663.9,2.48890823]
[1752070938259,2.01212748,2664.0,2663.9,2.48890823]
[1752070938853,2.66702748,2664.0,2663.9,0.75227]
[1752070939055,3.61862748,2664.0,2663.9,0.75227]
[1752070940163,2.01212748,2664.0,2663.9,0.75067]
[1752070940460,3.61862748,2664.0,2663.9,0.75067]
[1752070943353,3.61862748,2664.0,2663.9,2.04327]
[1752070943660,2.01212748,2664.0,2663.9,2.04327]
[1752070945060,1.6486,2664.4,2664.3,0.75056]
[1752070945265,2.78573004,2664.4,2664.3,2.48719823]
[1752070946165,1.3635,2664.4,2664.3,2.48719823]
[1752070946561,2.3151,2664.4,2664.3,2.48719823]
[1752070948262,2.3151,2664.4,2664.3,0.75056]
[1752070953571,2.3151,2664.4,2664.3,2.48719823]
[1752070953768,29.65149823,2665.1,2664.0,3.10977]
[1752070953769,0.9516,2664.7,2664.4,3.75266]
[1752070953969,3.37214007,2665.4,2665.3,0.75028]
[1752070954171,2.74579085,2665.4,2665.3,2.48691823]
[1752070954666,3.69739085,2665.4,2665.3,2.48691823]
[1752070954862,3.69739085,2665.4,2665.3,0.75028]
[1752070955766,3.69739085,2665.4,2665.2,0.75028]
[1752070956066,3.69809085,2665.3,2665.2,0.75028]
[1752070956369,4.36459085,2665.3,2665.2,0.75028]
[1752070956979,3.03899085,2665.3,2665.2,0.75028]
[1752070957577,3.37214007,2666.0,2665.0,3.27998992]
[1752070957777,0.6665,2665.4,2665.3,4.03026992]
[1752070959673,1.6314,2665.7,2665.6,0.75019]
[1752070959978,2.2979,2665.7,2665.6,4.03017992]
[1752070960880,0.9516,2666.1,2666.0,0.75008]
[1752070961177,0.74995,2666.5,2666.3,0.75]
[1752070961178,0.74996,2666.5,2666.3,0.75]
[1752070961370,1.2533,2666.4,2666.3,0.75]
[1752070961575,1.9198,2666.4,2666.3,0.75]
[1752070961779,2.8714,2666.4,2666.3,0.75]
[1752070962878,3.62137,2666.4,2666.3,0.75]
[1752070963281,8.62137,2666.4,2666.3,0.75]
[1752070965481,7.8714,2666.4,2666.3,0.75]
[1752070966285,8.62137,2666.4,2666.3,0.75]
[1752070966486,2.8714,2666.4,2666.3,0.75]
[1752070966786,28.8844,2666.4,2666.3,0.75]
[1752070966983,29.63437,2666.4,2666.3,0.75]
[1752070968383,3.5825445,2666.9,2666.8,0.74985]
[1752070968384,0.30255458,2666.9,2666.8,0.74985]
[1752070968581,0.6665,2666.9,2666.5,1.87486]
[1752070968782,0.6665,2666.9,2666.8,0.74985]
[1752070969380,0.74986,2666.8,2666.7,0.74985]
[1752070969587,0.74988,2666.8,2666.7,0.74987]
[1752070969782,2.11518,2666.8,2666.7,0.74988]
[1752070969982,0.74993,2666.6,2666.5,0.74992]
[1752070970179,2.11518,2666.8,2666.7,0.74988]
[1752070970378,2.11518,2666.8,2666.3,1.87497]
[1752070970379,0.74989,2666.7,2666.6,0.7499]
[1752070970582,0.74989,2666.7,2666.0,3.77128]
[1752070970583,1.3653,2666.7,2666.0,1.87518]
[1752070970788,0.75001,2666.3,2666.2,0.74999]
[1752070970990,26.79201,2666.3,2666.2,0.74999]
[1752070971187,26.042,2666.3,2666.2,0.74999]
[1752070971587,26.792,2666.3,2666.2,0.74999]
[1752070971787,28.1573,2666.3,2666.2,0.74999]
[1752070971984,27.4073,2666.3,2666.2,0.74999]
[1752070972189,29.083,2666.3,2665.8,1.87535]
[1752070972383,29.083,2666.3,2666.2,0.75002]
[1752070972584,29.074,2666.3,2666.2,0.75002]
[1752070972887,34.074,2666.3,2665.5,0.6403]
[1752070973096,34.074,2666.3,2665.8,0.75013]
[1752070973097,0.75013,2665.9,2665.8,0.75013]
[1752070973282,0.75013,2665.9,2665.5,0.6403]
[1752070973283,26.031,2665.9,2665.3,1.87567]
[1752070973488,26.031,2665.9,2665.0,1.9156]
[1752070973489,1.3262,2665.8,2665.0,1.9156]
[1752070973687,0.656,2665.4,2665.0,1.9156]
[1752070973884,25.69510621,2665.3,2665.2,0.7503]
[1752070974088,27.37080621,2665.3,2665.2,0.7503]
[1752070974492,27.7337,2665.3,2665.2,0.7503]
[1752070975288,27.7337,2665.3,2664.7,3.27998992]
[1752070975489,1.77002,2665.2,2665.1,0.75033]
[1752070975688,1.6757,2665.2,2664.5,1.8652]
[1752070975892,0.75046,2664.7,2664.6,0.75046]
[1752070976189,28.48416,2664.7,2664.6,0.75046]
[1752070976597,27.7337,2664.7,2664.6,0.75046]
[1752070977687,27.7317,2664.7,2664.6,0.75046]
[1752070978689,1.6757,2664.7,2664.6,0.75046]
[1752070978889,27.7277,2664.7,2664.6,0.75046]
[1752070979794,1.6757,2664.7,2664.6,0.75046]
[1752070979993,26.703,2664.7,2664.6,0.75046]
[1752070980194,26.047,2664.7,2664.6,0.75046]
[1752070980399,3.37214007,2666.0,2664.7,1.87609]
[1752070980588,2.41819542,2665.9,2665.8,0.75014]
[1752070980793,3.07419542,2665.9,2665.8,0.75014]
[1752070980987,29.15019542,2665.9,2665.8,0.75014]
[1752070981390,1.6757,2665.9,2665.8,0.75014]
[1752070981593,27.7517,2665.9,2665.8,0.75014]
[1752070981789,27.7477,2665.9,2665.8,0.75014]
[1752070982994,1.6757,2665.9,2665.8,0.75014]
[1752070983200,27.7447,2665.9,2665.8,0.75014]
[1752070983499,28.49481,2665.9,2665.8,0.75014]
[1752070983899,27.7447,2665.9,2665.8,0.75014]
[1752070984099,28.49481,2665.9,2665.8,0.75014]
[1752070984303,0.75015,2665.8,2665.7,0.75014]
[1752070984500,1.40453392,2665.8,2665.0,5.15586992]
[1752070984702,1.2913,2665.7,2665.6,0.75019]
[1752070984893,26.053,2665.7,2665.6,0.75019]
[1752070985504,26.80316,2665.7,2665.6,0.75019]
[1752070985704,26.053,2665.7,2665.6,0.75019]
[1752070985901,27.7287,2665.7,2665.6,0.75019]
[1752070986299,27.7377,2665.7,2665.6,0.75019]
[1752070986502,1.6757,2665.7,2665.6,0.75019]
[1752070986798,27.7287,2665.7,2665.6,0.75019]
[1752070987597,28.47886,2665.7,2665.6,0.75019]
[1752070988103,29.12881917,2665.7,2665.6,0.75019]
[1752070988605,29.11981917,2665.7,2665.6,0.75019]
[1752070989905,3.07781917,2665.7,2665.6,0.75019]
[1752070990106,29.86697917,2665.7,2665.6,0.75019]
[1752070990509,29.10881917,2665.7,2665.6,0.75019]
[1752070990900,27.7067,2665.7,2665.6,0.75019]
[1752070991206,27.7047,2665.7,2665.6,0.75019]
[1752070991506,27.6997,2665.7,2665.6,0.75019]
[1752070991808,29.85186568,2665.7,2665.6,0.75019]
[1752070992604,29.85186568,2665.7,2665.1,2.50769]
[1752070992605,0.75024,2665.5,2665.4,0.75021]
[1752070992908,28.44494,2665.5,2665.4,0.75021]
[1752070993606,28.44492,2665.5,2665.4,0.75021]
[1752070994901,2.42592,2665.5,2665.4,0.75021]
[1752070995099,27.6907,2665.5,2665.4,0.75021]
[1752070995304,0.656,2665.5,2665.4,0.75021]
[1752070995499,26.671,2665.5,2665.4,0.75021]
[1752070995705,0.656,2665.5,2665.4,0.75021]
[1752070995904,26.671,2665.5,2665.4,0.75021]
[1752070996210,27.6907,2665.5,2665.4,0.75021]
[1752070996808,1.6757,2665.5,2665.4,0.75021]
[1752070997010,27.6907,2665.5,2665.4,0.75021]
[1752070998605,1.6757,2665.5,2665.4,0.75021]
[1752070998799,27.6907,2665.5,2665.4,0.75021]
[1752070999211,28.44092,2665.5,2665.4,0.75021]
[1752070999613,28.44092,2665.5,2665.4,0.75025]
[1752070999905,1.6757,2665.5,2665.4,0.75025]
[1752071000104,0.656,2665.5,2665.4,0.75025]
[1752071000309,26.671,2665.5,2665.4,0.75025]
[1752071000510,0.656,2665.5,2665.4,0.75025]
[1752071000712,26.671,2665.5,2665.4,0.75025]
[1752071001507,0.75012,2665.9,2665.6,1.87548]
[1752071001707,28.03476611,2665.8,2665.7,0.75016]
[1752071001907,28.03476611,2665.8,2665.7,2.74076]
[1752071003810,2.02076611,2665.8,2665.7,2.74076]
[1752071004110,28.03476611,2665.8,2665.7,2.74076]
[1752071004312,29.75960611,2665.8,2665.7,0.75016]
[1752071004712,3.74560611,2665.8,2665.7,0.75016]
[1752071005012,2.02076611,2665.8,2665.7,0.75016]
[1752071005215,28.03376611,2665.8,2665.7,0.75016]
[1752071005414,1.40236611,2665.8,2665.7,0.75016]
[1752071005612,27.41536611,2665.8,2665.7,0.75016]
[1752071006514,28.03376611,2665.8,2665.7,0.75016]
[1752071007015,26.6314,2665.8,2665.7,0.75016]
[1752071007209,28.03336488,2665.8,2665.7,0.75016]
[1752071007409,26.6314,2665.8,2665.7,0.75016]
[1752071007814,55.0227,2666.1,2666.0,0.75008]
[1752071008016,82.43657628,2666.1,2666.0,0.75008]
[1752071008417,83.18662628,2666.1,2666.0,0.75008]
[1752071008915,0.75011,2666.0,2665.9,0.75009]
[1752071009114,3.74508628,2666.0,2665.9,0.75009]
[1752071009316,0.75012,2665.9,2665.8,0.75011]
[1752071009508,30.38969628,2665.9,2665.8,0.75011]
[1752071010416,29.63957628,2665.9,2665.8,0.75011]
[1752071010909,30.38968628,2665.9,2665.8,0.75011]
[1752071011110,29.63957628,2665.9,2665.8,0.75011]
[1752071011314,3.62857628,2665.9,2665.8,0.75011]
[1752071011514,29.63857628,2665.9,2665.8,0.75011]
[1752071012014,2.02027628,2665.9,2665.8,0.75011]
[1752071012221,1.40187628,2665.9,2665.8,0.75011]
[1752071012421,27.41187628,2665.9,2665.8,0.75011]
[1752071013311,1.40187628,2665.9,2665.8,0.75011]
[1752071013516,27.4124183,2665.9,2665.8,0.75014]
[1752071013918,28.0298183,2665.9,2665.8,2.03644]
[1752071014124,27.4114183,2665.9,2665.8,2.03644]
[1752071014325,0.9747,2666.4,2666.3,0.75]
[1752071014618,27.6021,2666.4,2666.3,4.02998992]
[1752071015224,3.37214007,2666.8,2666.5,0.74994]
[1752071015422,0.6184,2666.6,2666.5,0.74994]
[1752071015614,0.6184,2666.6,2666.5,4.02992992]
[1752071016021,1.43241,2667.0,2666.9,0.74983]
[1752071016221,0.74983,2666.9,2666.8,0.74983]
[1752071016421,1.36823,2666.9,2666.8,0.74983]
[1752071016621,2.34293,2666.9,2666.8,0.74983]
[1752071017425,0.74989,2666.8,2666.7,0.74986]
[1752071017722,1.5931,2666.8,2666.7,0.74986]
[1752071017925,26.6254,2666.8,2666.7,0.74986]
[1752071018325,0.6184,2666.8,2666.7,0.74986]
[1752071018526,26.6254,2666.8,2666.7,0.74986]
[1752071018921,1.5931,2666.8,2666.7,0.74986]
[1752071019223,28.34795,2666.8,2666.7,0.74986]
[1752071019427,2.34295,2666.8,2666.7,0.74986]
[1752071019627,28.34795,2666.8,2666.7,0.74988]
[1752071020030,0.6184,2666.8,2666.7,4.02986992]
[1752071020331,3.37214007,2667.4,2667.3,0.74971]
[1752071020332,1.72443,2667.4,2667.3,0.74971]
[1752071020527,26.9787,2667.4,2666.9,1.87457]
[1752071020732,0.74978,2667.2,2667.1,0.74975]
[1752071021233,26.75378,2667.2,2667.1,0.74975]
[1752071021628,26.75378,2667.2,2667.0,0.74978]
[1752071021629,0.74981,2667.1,2667.0,0.74978]
[1752071021823,0.74983,2666.9,2665.7,4.49390378]
[1752071022031,0.74983,2667.0,2666.9,0.7498]
[1752071022230,26.75383,2667.0,2666.9,0.7498]
[1752071022430,26.004,2667.0,2666.4,5.15491992]
[1752071022629,0.74991,2666.7,2666.6,0.7499]
[1752071022934,26.75391,2666.7,2666.6,0.7499]
[1752071023633,1.40566,2666.8,2666.7,0.74988]
[1752071023834,27.2752,2666.8,2666.7,0.74988]
[1752071024224,28.02505,2666.8,2666.7,0.74988]
[1752071024629,27.2752,2666.8,2666.7,0.74988]
[1752071025543,28.99975,2666.8,2666.7,0.74988]
[1752071026136,28.99875,2666.8,2666.7,0.74988]
[1752071027734,0.74991,2666.7,2666.6,0.74989]
[1752071027939,2.34301,2666.7,2666.6,0.74989]
[1752071030634,1.5931,2666.7,2666.6,0.74989]
[1752071030940,26.6164,2666.7,2666.6,0.74989]
[1752071031138,0.6184,2666.7,2666.6,0.74989]
[1752071031339,0.6558,2666.8,2666.7,0.74988]
[1752071031534,27.2787,2666.8,2666.7,0.74988]
[1752071031736,0.6249,2666.8,2666.7,4.02986992]
[1752071031932,26.6219,2666.8,2666.7,4.02986992]
[1752071032136,0.6249,2666.8,2666.7,4.02986992]
[1752071032336,1.36996,2667.2,2666.7,4.02986992]
[1752071032337,0.6202,2667.2,2667.1,0.74977]
[1752071032543,27.2421,2667.2,2667.1,0.74977]
[1752071032841,1.2451,2667.2,2667.1,0.74977]
[1752071033041,27.2421,2667.2,2667.1,0.74977]
[1752071033342,1.2451,2667.2,2667.1,0.74977]
[1752071033540,27.2421,2667.2,2667.1,0.74977]
[1752071034043,28.92664,2667.2,2667.1,0.74977]
[1752071034235,28.1769,2667.2,2667.1,0.74977]
[1752071034633,2.1799,2667.2,2667.1,0.74977]
[1752071035143,28.92464,2667.2,2667.1,0.74977]
[1752071035339,28.1749,2667.2,2667.1,0.74977]
[1752071035740,28.92464,2667.2,2667.1,0.74977]
[1752071035941,54.78867,2667.5,2667.4,0.74969]
[1752071036142,83.09378672,2667.5,2667.4,0.74969]
[1752071036647,56.34911672,2667.5,2667.4,0.74969]
[1752071036835,55.41431672,2667.5,2667.4,0.74969]
[1752071037034,0.6705,2667.6,2667.5,0.74966]
[1752071037237,0.6249,2667.6,2667.5,0.74966]
[1752071037439,26.6179,2667.6,2667.5,0.74966]
[1752071037633,0.644,2667.8,2667.7,0.7496]
[1752071037835,0.6249,2667.8,2667.7,0.7496]
[1752071038843,0.644,2668.1,2668.0,0.74952]
[1752071039041,28.75958312,2668.1,2668.0,0.74952]
[1752071039242,29.56979312,2668.1,2668.0,0.74952]
[1752071039442,4.32628312,2668.1,2668.0,0.74952]
[1752071039642,0.74955,2668.0,2667.9,0.74953]
[1752071039843,2.30925,2668.0,2667.9,0.74953]
[1752071040244,1.5597,2668.0,2667.4,1.2558]
[1752071040547,0.74967,2667.5,2667.4,0.74966]
[1752071040845,0.6249,2667.5,2667.4,0.74969]
[1752071041547,0.6249,2667.5,2667.4,4.02967992]
[1752071041749,0.6503,2667.7,2667.6,0.74963]
[1752071041943,0.6249,2667.7,2667.6,0.74963]
[1752071042843,0.6249,2667.7,2667.2,1.87432]
[1752071042844,1.5597,2667.7,2667.2,1.87432]
[1752071043036,0.6249,2667.7,2667.6,0.74963]
[1752071043837,0.74965,2667.6,2667.5,0.74964]
[1752071044037,1.2975,2667.6,2667.5,0.74964]
[1752071044243,0.6249,2667.6,2667.5,0.74964]
[1752071044443,26.9218,2667.9,2667.8,0.74957]
[1752071044643,27.5467,2667.9,2667.8,0.74957]
[1752071045547,27.5467,2667.9,2667.3,1.2329]
[1752071045850,0.74969,2667.5,2667.4,0.74966]
[1752071046048,0.74973,2667.3,2667.2,0.74971]
[1752071046237,0.74973,2667.3,2667.1,1.37905]
[1752071046238,0.74974,2667.2,2667.1,1.37905]
[1752071046438,1.5597,2667.2,2667.1,0.74977]
[1752071046638,0.74979,2667.1,2667.0,0.74977]
[1752071046848,1.37469,2667.1,2667.0,0.74977]
[1752071047038,1.5597,2667.1,2667.0,0.74977]
[1752071047241,0.6249,2667.1,2667.0,0.74977]
[1752071047443,1.5774,2667.4,2667.3,0.74971]
[1752071047647,27.5624,2667.4,2667.3,0.74971]
[1752071047944,28.1873,2667.4,2667.3,0.74971]
[1752071048145,2.2023,2667.4,2666.9,1.87457]
[1752071048345,1.68455,2667.3,2667.2,0.74972]
[1752071048546,0.74974,2667.2,2667.1,0.74975]
[1752071048845,2.30944,2667.2,2667.1,0.74975]
[1752071049242,0.74983,2667.0,2666.9,0.74979]
[1752071049444,1.5597,2667.0,2666.9,0.74983]
[1752071049649,0.6249,2667.0,2666.9,0.74983]
[1752071049850,1.3747,2667.0,2666.9,0.74983]
[1752071050047,0.6249,2667.0,2666.9,0.74983]
[1752071050244,0.6249,2667.0,2666.9,4.02981992]
[1752071050550,0.6249,2667.0,2666.9,0.74983]
[1752071051243,1.5597,2667.0,2666.9,0.74983]
[1752071051454,2.3095,2667.0,2666.9,0.74983]
[1752071052444,1.5597,2667.0,2666.9,0.74983]
[1752071052844,0.6249,2667.0,2666.9,0.74983]
[1752071053139,2.3095,2667.0,2666.9,0.74983]
[1752071053844,0.74985,2666.9,2666.7,0.6751]
[1752071054043,0.6249,2666.8,2666.7,0.74988]
[1752071054646,1.5597,2666.8,2666.7,0.74988]
[1752071056042,2.30955,2666.8,2666.7,0.74988]
[1752071056243,1.5597,2666.8,2666.7,0.74988]
[1752071056448,0.6249,2666.8,2666.7,0.74988]
[1752071057145,25.985,2667.0,2666.9,0.74983]
[1752071057345,27.98470455,2667.0,2666.9,0.74983]
[1752071057839,26.6099,2667.0,2666.9,0.74983]
[1752071058040,1.5597,2667.0,2666.9,0.74983]
[1752071059047,0.6249,2667.0,2666.9,0.74983]
[1752071059239,0.6249,2667.0,2666.9,2.72903]
[1752071060848,0.9357,2667.2,2666.9,3.85374]
[1752071061050,0.6202,2667.0,2666.9,2.72903]
[1752071061745,2.30571,2667.0,2666.9,0.74983]
[1752071063143,2.92870357,2667.0,2666.5,1.8885]
[1752071063346,0.74991,2666.7,2666.6,0.74986]
[1752071063644,1.5559,2666.7,2666.3,1.87498]
[1752071063849,0.74996,2666.5,2666.4,0.74993]
[1752071064048,2.30586,2666.5,2666.4,0.74993]
[1752071065444,0.75,2666.4,2666.3,0.74999]
[1752071065642,0.75,2666.4,2666.0,0.75006]
[1752071065643,0.75008,2666.1,2666.0,0.75006]
[1752071065848,2.30598,2666.1,2666.0,0.75006]
[1752071066449,1.5559,2666.1,2666.0,0.75006]
[1752071066848,2.30595,2666.1,2666.0,0.75006]
[1752071069048,1.5559,2666.1,2666.0,0.75006]
[1752071069356,26.738,2666.3,2666.2,0.75002]
[1752071069554,0.6202,2666.3,2666.2,4.03000992]
[1752071071144,25.987,2666.6,2666.5,0.74994]
[1752071071448,0.6202,2666.6,2666.5,0.74994]
[1752071071648,26.6412,2666.8,2666.7,0.74988]
[1752071071848,27.2614,2666.8,2666.7,0.74988]
[1752071072053,28.63364269,2666.8,2666.7,0.74988]
[1752071072956,29.56934269,2666.8,2666.7,0.74988]
[1752071073649,2.2081,2666.8,2666.7,0.74988]
[1752071074155,0.6202,2666.8,2666.7,0.74988]
[1752071075258,1.5571,2667.2,2667.1,0.74977]
[1752071075555,29.54000446,2667.2,2667.1,0.74977]
[1752071075754,1.99590446,2667.2,2667.1,4.02975992]
[1752071075949,1.37570446,2667.2,2667.1,4.02975992]
[1752071076456,1.37570446,2667.2,2667.1,4.66425992]
[1752071077746,1.99590446,2667.2,2667.1,1.38427]
[1752071077952,2.93160446,2667.2,2667.1,0.74977]
[1752071078753,1.99590446,2667.2,2667.1,0.74977]
[1752071079453,2.93160446,2667.2,2667.1,0.74977]
[1752071080356,3.68134446,2667.2,2667.1,0.74977]
[1752071080563,4.34754446,2667.2,2667.1,0.74977]
[1752071080754,3.59780446,2667.2,2667.1,0.74977]
[1752071081761,1.99590446,2667.2,2667.1,0.74977]
[1752071082061,1.37570446,2667.2,2667.1,0.74977]
[1752071082960,27.5839,2667.7,2667.6,0.74963]
[1752071083162,29.58049292,2667.7,2667.6,0.74963]
[1752071083362,3.59849292,2667.7,2667.6,0.74963]
[1752071083750,30.32909292,2667.7,2667.6,0.74963]
[1752071084259,29.57949292,2667.7,2667.6,0.74963]
[1752071084456,3.59849292,2667.7,2667.6,0.74963]
[1752071085555,2.66279292,2667.7,2667.6,0.74963]
[1752071085759,1.2864,2667.7,2667.6,0.74963]
[1752071086151,0.6202,2667.7,2667.6,0.74963]
[1752071086961,4.49618676,2668.7,2667.7,1.87399]
[1752071087263,0.18531997,2668.8,2668.3,0.74943]
[1752071087264,0.6202,2668.4,2668.3,0.74943]
[1752071087757,1.5559,2668.4,2668.3,0.74943]
[1752071088359,2.3053,2668.4,2668.3,0.74943]
[1752071089560,1.5559,2668.4,2668.3,0.74943]
[1752071090359,2.3053,2668.4,2668.3,0.74943]
[1752071090661,0.74946,2668.3,2668.2,0.74944]
[1752071090962,3.12376,2668.3,2668.2,0.74944]
[1752071091263,0.74953,2668.0,2667.9,0.74952]
[1752071091560,1.7011,2668.0,2667.9,0.74952]
[1752071091857,0.6756,2668.0,2667.9,0.74952]
[1752071093060,1.7011,2668.0,2667.9,0.74952]
[1752071095056,2.45062,2668.0,2667.9,0.74952]
[1752071095455,1.7011,2668.0,2667.9,0.74952]
[1752071096458,2.45062,2668.0,2667.9,0.74955]
[1752071097259,0.74959,2667.9,2667.8,0.74955]
[1752071097562,0.74961,2667.8,2667.7,0.74958]
[1752071097763,2.07761,2667.8,2667.7,0.74958]
[1752071097960,3.10311,2667.8,2667.7,0.74958]
[1752071098760,1.0255,2668.3,2668.0,0.74948]
[1752071098965,0.6756,2668.1,2668.0,0.74948]
[1752071099166,0.74954,2668.0,2667.9,0.74952]
[1752071099459,2.45064,2668.0,2667.9,0.74952]
[1752071099867,1.7011,2668.0,2667.9,0.74952]
[1752071100558,0.6756,2668.0,2667.9,0.74952]
[1752071100955,0.6756,2668.0,2667.9,2.62762]
[1752071101559,26.6204,2668.2,2668.1,0.74949]
[1752071101767,27.296,2668.2,2668.1,0.74949]
[1752071102064,28.3215,2668.2,2668.1,0.74949]
[1752071102661,2.3535,2668.2,2668.1,0.74949]
[1752071103058,28.3215,2668.2,2668.1,0.74949]
[1752071103766,27.296,2668.2,2668.1,0.74949]
[1752071103961,28.3205,2668.2,2668.1,0.74949]
[1752071104162,29.06996,2668.2,2668.1,0.74949]
[1752071104460,28.3205,2668.2,2668.1,0.74949]
[1752071104856,29.06996,2668.2,2668.1,0.74949]
[1752071105363,29.06997,2668.2,2668.1,0.74949]
[1752071105765,0.74961,2667.8,2667.7,0.74956]
[1752071106066,0.74969,2667.5,2667.4,0.74964]
[1752071106267,2.45079,2667.5,2667.4,0.74964]
[1752071106463,0.6756,2667.5,2667.4,0.74964]
[1752071106663,41.431,2667.7,2667.6,0.74963]
[1752071106970,26.597,2667.7,2667.6,0.74963]
[1752071107363,40.8,2668.0,2667.5,3.78101]
[1752071107562,26.71555,2667.9,2667.8,0.74957]
[1752071107765,1.6663,2668.0,2667.9,0.74955]
[1752071107966,28.3079,2668.0,2667.9,0.74955]
[1752071108770,29.05742,2668.0,2667.9,0.74955]
[1752071109365,3.70588052,2668.0,2667.9,0.74955]
[1752071109671,29.67188052,2668.0,2667.9,0.74955]
[1752071109868,29.67188052,2668.0,2667.5,3.78104]
[1752071110170,2.38948052,2667.9,2667.8,0.74957]
[1752071110372,28.00558052,2667.9,2667.8,0.74957]
[1752071110574,26.6416,2667.9,2667.8,0.74957]
[1752071110866,0.6756,2667.9,2667.8,0.74957]
[1752071111069,28.00703873,2667.9,2667.8,0.74957]
[1752071111266,0.74944,2668.4,2668.3,0.74941]
[1752071111471,30.44584967,2668.4,2668.3,0.74941]
[1752071111866,34.84995959,2668.4,2667.6,1.87405]
[1752071112067,1.87375,2668.1,2667.6,0.6557]
[1752071112273,0.7496,2667.8,2667.7,0.74956]
[1752071112470,1.4252,2667.8,2667.7,0.74956]
[1752071112677,3.81610967,2667.8,2667.7,0.74956]
[1752071112868,3.06650967,2667.8,2667.7,0.74956]
[1752071113070,28.00700967,2667.8,2667.7,0.74956]
[1752071113576,1.0255,2668.3,2668.2,0.74946]
[1752071113778,30.44189362,2668.3,2668.2,0.74946]
[1752071114676,28.00806362,2668.3,2668.2,0.74946]
[1752071114876,2.04306362,2668.3,2668.2,0.74946]
[1752071115076,28.00806362,2668.3,2668.2,0.74946]
[1752071115573,1.36746362,2668.3,2668.2,0.74946]
[1752071116075,1.36746362,2668.3,2668.2,2.66796]
[1752071116270,1.36746362,2668.3,2668.2,7.66796]
[1752071116968,1.36746362,2668.3,2668.2,2.66796]
[1752071117174,3.06856362,2668.3,2668.2,2.66796]
[1752071117475,2.04306362,2668.3,2668.2,2.66796]
[1752071117881,0.74947,2668.2,2667.7,5.22919058]
[1752071118182,1.42519,2667.8,2667.5,3.35522058]
[1752071118371,0.6756,2667.8,2667.7,0.7496]
[1752071118675,0.74966,2667.5,2667.4,3.35522058]
[1752071118875,1.42526,2667.5,2667.4,0.74969]
[1752071119078,2.45076,2667.5,2667.4,0.74969]
[1752071119478,3.8124437,2667.5,2667.4,0.74969]
[1752071119676,0.74974,2667.3,2667.2,0.74972]
[1752071119881,1.42534,2667.3,2667.2,0.74972]
[1752071120483,1.617,2667.3,2666.9,5.26826396]
[1752071120679,0.7498,2667.0,2666.9,4.10707396]
[1752071120877,1.3825,2667.0,2666.9,0.74981]
[1752071121178,2.3239,2667.0,2666.9,0.74981]
[1752071121383,1.5741,2667.0,2666.6,3.35726396]
[1752071121583,1.5741,2667.0,2666.9,0.74983]
[1752071121779,25.963,2667.4,2666.9,1.87457]
[1752071121984,0.9414,2667.6,2667.4,0.74967]
[1752071121985,26.71466,2667.5,2667.4,0.74967]
[1752071122179,2.74311024,2667.5,2667.4,0.74967]
[1752071122482,28.70811024,2667.5,2667.4,0.74967]
[1752071122685,27.95845024,2667.5,2667.4,0.74967]
[1752071122881,1.99345024,2667.5,2667.4,0.74967]
[1752071123275,1.99345024,2667.5,2667.4,2.04967]
[1752071123477,11.21484016,2667.5,2666.9,3.35726396]
[1752071123680,5.44965706,2667.4,2666.8,0.74983]
[1752071123985,0.6327,2666.9,2666.8,0.74983]
[1752071124184,28.27500706,2667.3,2666.8,0.74983]
[1752071124185,0.9414,2667.3,2666.8,3.27998992]
[1752071124385,1.36055918,2667.2,2667.1,0.74977]
[1752071124581,0.6777,2667.7,2667.1,4.02975992]
[1752071124786,27.2914,2667.7,2667.6,0.74963]
[1752071124991,28.65113521,2667.7,2667.6,0.74963]
[1752071125288,1.99243521,2667.7,2667.6,0.74963]
[1752071125486,1.99243521,2667.7,2667.6,2.03973]
[1752071125686,1.5683,2668.1,2668.0,0.74952]
[1752071125687,0.6269,2668.1,2668.0,0.74952]
[1752071125892,53.991,2668.3,2668.2,0.74946]
[1752071125893,79.976,2668.3,2668.2,0.74946]
[1752071126185,28.28587021,2668.3,2668.2,0.74946]
[1752071126388,28.91857021,2668.3,2668.2,0.74946]
[1752071126581,2.93357021,2668.3,2668.2,0.74946]
[1752071126781,1.99217021,2668.3,2668.2,4.02944992]
[1752071127086,0.6327,2668.3,2668.2,4.02944992]
[1752071127279,0.18531997,2668.8,2668.7,0.74932]